bitfinex-derivatives/quotes_ETHF0:USTF0_20250727
["timestamp","ask_amount","ask_price","bid_price","bid_amount"]
[1753619325472,0.89059428,3820.9,3820.8,6.56446]
[1753619326082,2.27148551,3820.9,3820.8,6.56446]
[1753619326376,2.27274595,3820.9,3820.8,6.56446]
[1753619327877,5.38744428,3820.9,3820.8,6.56446]
[1753619328179,3.96864428,3820.9,3820.8,6.56446]
[1753619328377,5.38744428,3820.9,3820.8,6.56446]
[1753619329481,0.89059428,3820.9,3820.8,6.56446]
[1753619329676,1.41384428,3820.9,3820.8,6.56446]
[1753619329880,5.38744428,3820.9,3820.8,6.56446]
[1753619330079,5.38744428,3820.9,3820.8,6.0412]
[1753619330278,5.38744428,3820.9,3820.8,0.8558]
[1753619330979,5.38744428,3820.9,3820.8,1.4255]
[1753619331182,7.22745871,3820.9,3820.8,1.4255]
[1753619331376,7.22745871,3820.9,3820.8,4.7404]
[1753619331880,7.22745871,3820.9,3820.8,6.0412]
[1753619331881,5.38744428,3820.9,3820.8,6.0412]
[1753619332082,5.38744428,3820.9,3820.8,2.2571]
[1753619332285,5.38744428,3820.9,3820.8,6.0412]
[1753619332980,5.38744428,3820.9,3820.8,6.56446]
[1753619332981,1.41384428,3820.9,3820.8,6.56446]
[1753619333685,4.49693,3820.3,3820.2,1.4255]
[1753619333979,8.59882428,3820.3,3820.2,0.8558]
[1753619335077,3.08379,3819.9,3819.8,1.61922488]
[1753619335276,8.59538428,3819.9,3819.8,1.61922488]
[1753619335477,8.59538428,3819.9,3819.8,3.40522488]
[1753619335677,8.59538428,3819.9,3819.8,4.93412488]
[1753619335873,8.59538428,3819.9,3819.8,6.23492488]
[1753619336073,8.59888428,3819.9,3819.8,0.19372488]
[1753619336278,1.89277,3819.3,3819.2,0.01832821]
[1753619336575,7.39197329,3819.3,3819.2,0.87412821]
[1753619336876,1.88945,3818.0,3817.9,6.0412]
[1753619337081,1.72869428,3818.0,3817.9,6.0412]
[1753619337278,0.89059428,3818.0,3817.9,6.56486]
[1753619337476,4.34494,3818.8,3818.7,5.9729]
[1753619338176,6.0526,3818.8,3817.7,4.4974]
[1753619338377,4.6229,3818.2,3818.1,4.38773]
[1753619338583,0.52359,3818.5,3818.4,1.4415]
[1753619338782,3.73137,3818.6,3818.4,2.3886]
[1753619338983,3.73137,3818.6,3818.5,6.0058]
[1753619339282,3.73136,3818.6,3818.5,6.0058]
[1753619339882,3.2078,3818.6,3818.5,6.52938]
[1753619340382,4.85236,3818.6,3818.5,6.0058]
[1753619340681,0.1186,3818.6,3818.5,6.52938]
[1753619340888,3.2078,3819.3,3819.2,5.0587]
[1753619341188,3.2078,3819.3,3819.2,6.52928]
[1753619341491,3.73127,3819.3,3819.2,6.0058]
[1753619341671,3.73127,3819.3,3819.2,6.52928]
[1753619341873,3.2078,3819.3,3819.2,6.52928]
[1753619342275,3.73127,3819.3,3819.2,6.0058]
[1753619342473,5.28437,3819.3,3819.2,6.0058]
[1753619342672,7.25717,3819.3,3819.2,6.0058]
[1753619342878,5.6,3819.3,3818.5,3.2078]
[1753619343083,5.6,3819.3,3817.8,0.19382637]
[1753619343084,5.77318,3819.2,3819.1,3.2407]
[1753619343283,4.88848,3819.2,3819.1,4.5303]
[1753619343581,4.88848,3819.2,3819.1,6.0058]
[1753619343985,3.50438,3819.2,3819.1,6.0058]
[1753619344584,1.09948,3819.2,3819.1,6.0058]
[1753619344885,2.07658,3819.2,3819.1,6.0058]
[1753619345077,4.04938,3819.2,3819.1,6.0058]
[1753619345479,4.88848,3819.2,3819.1,6.0058]
[1753619345680,4.88855,3818.7,3818.6,6.0058]
[1753619345882,2.07668,3818.5,3818.4,2.8193]
[1753619346182,4.88858,3818.5,3818.4,6.0058]
[1753619347177,5.77328,3818.5,3818.4,0.8521]
[1753619348678,5.77328,3818.5,3818.1,1.2896]
[1753619348679,5.77332,3818.2,3818.1,2.2936]
[1753619348881,5.77332,3818.2,3817.8,2.91812637]
[1753619348882,4.88866,3817.9,3817.8,2.91812637]
[1753619349081,5.77336,3817.9,3817.8,0.19382637]
[1753619349487,6.4812984,3817.9,3817.8,0.19382637]
[1753619349788,2.30283,3815.9,3814.9,3.2078]
[1753619350084,2.30283,3815.9,3814.5,1.3103]
[1753619350085,1.95173,3815.9,3815.8,3.81112796]
[1753619350277,2.30283,3815.9,3815.8,2.33562796]
[1753619350482,3.17833,3815.9,3815.8,0.19392796]
[1753619351184,5.0,3815.9,3814.5,0.8521]
[1753619351383,0.26425648,3816.3,3814.4,1.2896]
[1753619351384,3.2078,3814.7,3814.4,2.1417]
[1753619351586,3.2078,3814.7,3814.4,0.52413]
[1753619351778,3.2078,3814.7,3814.6,3.6172]
[1753619352388,3.2078,3815.1,3815.0,0.52406]
[1753619352590,3.365,3815.5,3815.4,0.524]
[1753619352784,5.49833609,3815.5,3815.4,4.1412]
[1753619353291,4.7928,3815.5,3815.4,4.1412]
[1753619353486,5.49516976,3815.5,3815.4,4.1412]
[1753619353687,5.33796976,3815.5,3815.4,4.1412]
[1753619353882,1.4278,3815.4,3814.9,0.8521]
[1753619354093,1.30971,3816.3,3814.9,0.8521]
[1753619354094,5.6683,3815.0,3814.9,0.8521]
[1753619354287,2.10907,3814.9,3814.7,2.1417]
[1753619354483,2.10909,3814.8,3814.7,1.2896]
[1753619354689,1.585,3814.8,3814.7,1.8137]
[1753619354983,1.585,3814.8,3814.7,1.2896]
[1753619355188,2.98459,3814.8,3814.7,0.8521]
[1753619355380,1.585,3814.8,3814.7,0.8521]
[1753619355581,2.98459,3814.8,3814.7,0.8521]
[1753619355785,0.52412,3814.6,3814.4,1.2896]
[1753619355993,4.7928,3814.5,3814.4,1.2896]
[1753619356591,3.2078,3814.5,3814.4,4.14134]
[1753619357785,1.585,3814.8,3814.7,0.5241]
[1753619357989,1.585,3814.8,3814.7,4.1413]
[1753619358693,5.15967,3814.9,3814.8,3.6172]
[1753619358887,5.31687,3814.9,3814.8,3.6172]
[1753619359088,5.31687,3814.9,3814.8,2.1417]
[1753619359289,0.52411,3814.7,3814.5,0.52412]
[1753619359488,1.585,3814.7,3814.6,0.8521]
[1753619359694,2.10911,3814.7,3814.6,0.8521]
[1753619359891,2.10911,3814.7,3814.6,2.1417]
[1753619360097,1.95191,3814.7,3814.6,4.14131]
[1753619360295,1.95191,3814.7,3814.6,3.6172]
[1753619360496,2.92901,3814.7,3814.6,6.52991]
[1753619360699,1.50121,3814.7,3814.6,5.67781]
[1753619360890,0.5241,3814.7,3814.6,6.52991]
[1753619361091,0.52409,3814.8,3814.7,2.91269]
[1753619361291,0.52409,3814.8,3814.7,6.0058]
[1753619361591,4.6356,3814.9,3814.8,2.3886]
[1753619361799,6.13678,3814.9,3814.8,6.0058]
[1753619361996,1.31005,3815.3,3815.2,2.3886]
[1753619361997,3.2078,3815.3,3815.2,2.3886]
[1753619362193,3.73182,3815.3,3815.2,6.0058]
[1753619362589,3.2078,3815.3,3815.2,6.52983]
[1753619362994,3.2078,3815.8,3815.7,0.52394]
[1753619363189,0.52399,3815.6,3815.5,0.52398]
[1753619363392,3.73176,3815.8,3815.7,0.52396]
[1753619363700,3.2078,3815.8,3815.7,4.14116]
[1753619365501,3.2078,3815.8,3815.7,6.52976]
[1753619369610,3.73175,3815.8,3815.7,6.52976]
[1753619369808,3.2078,3815.8,3815.7,6.52976]
[1753619370714,3.7808,3816.2,3816.1,6.61741]
[1753619370913,3.2078,3816.2,3816.1,6.61741]
[1753619371108,4.7643,3816.2,3816.1,6.61741]
[1753619371308,6.2412,3816.2,3816.1,6.61741]
[1753619371802,4.7643,3816.2,3816.1,6.61741]
[1753619372004,7.5995,3816.2,3816.1,1.40411]
[1753619372212,8.12339,3816.2,3816.1,1.40411]
[1753619372415,8.12339,3816.2,3816.1,2.91781]
[1753619372614,7.5995,3816.2,3816.1,2.91781]
[1753619372913,6.7432,3816.2,3816.1,6.61741]
[1753619373313,3.2078,3816.6,3816.4,0.52386]
[1753619373611,0.8328,3816.2,3816.1,1.52857603]
[1753619373818,8.1234,3816.2,3816.1,0.01487603]
[1753619374109,8.1234,3816.2,3816.1,0.53878603]
[1753619374303,8.1234,3816.2,3816.1,0.01487603]
[1753619374504,7.26709,3816.2,3816.1,6.63228603]
[1753619374909,6.4343,3816.2,3816.1,6.63228603]
[1753619375311,3.2078,3816.2,3816.1,6.63228603]
[1753619375711,4.7643,3816.2,3816.1,6.63228603]
[1753619375912,6.7432,3816.2,3816.1,6.63228603]
[1753619376515,7.5995,3816.2,3816.1,2.93268603]
[1753619376714,8.12339,3816.2,3816.1,2.31448603]
[1753619377513,7.5995,3816.2,3816.1,2.31448603]
[1753619377719,7.5995,3816.2,3816.1,5.20328603]
[1753619377916,6.7432,3816.2,3816.1,5.20328603]
[1753619378116,6.7432,3816.2,3816.1,6.63228603]
[1753619379321,7.26709,3816.2,3816.1,6.63228603]
[1753619380118,8.12339,3816.2,3816.1,2.93268603]
[1753619380520,8.12339,3816.2,3816.1,2.31448603]
[1753619380720,8.12339,3816.2,3816.1,5.20328603]
[1753619380915,8.12339,3816.2,3816.1,0.01487603]
[1753619381423,4.0594,3815.4,3815.3,3.3845]
[1753619381624,7.2672,3815.4,3815.3,4.6645]
[1753619382117,7.2672,3815.4,3815.3,6.0935]
[1753619384126,8.1235,3815.4,3815.3,4.6645]
[1753619384525,8.1235,3815.4,3815.3,3.90852]
[1753619384823,8.1235,3815.4,3815.3,3.3845]
[1753619385426,8.1235,3815.4,3815.3,5.18852]
[1753619385924,8.1235,3815.4,3815.3,4.6645]
[1753619386521,8.1235,3815.4,3815.3,2.3939]
[1753619387121,0.52404,3815.1,3815.0,2.709]
[1753619387331,4.91574,3815.1,3815.0,2.3939]
[1753619388026,0.52409,3814.8,3814.7,2.709]
[1753619388224,8.12359,3814.8,3814.7,4.6645]
[1753619389922,6.76529,3814.8,3814.7,6.0935]
[1753619390127,6.76529,3814.8,3814.7,6.6176]
[1753619390425,0.52407,3815.0,3814.8,6.0935]
[1753619390635,3.2078,3815.2,3815.1,2.5043]
[1753619390636,4.1913,3815.2,3815.1,2.5043]
[1753619390930,4.1913,3815.2,3815.1,6.61754]
[1753619391123,3.2078,3815.2,3815.1,6.61754]
[1753619393330,4.05937,3815.7,3815.6,3.02828]
[1753619393524,3.5354,3815.7,3815.6,6.61748]
[1753619394232,3.0334,3815.7,3815.6,6.61748]
[1753619394427,0.9835,3815.7,3815.6,6.61748]
[1753619394731,3.2265,3815.7,3815.6,6.61748]
[1753619395130,3.5354,3815.7,3815.6,6.61748]
[1753619395831,4.3917,3815.7,3815.6,1.40418]
[1753619396128,3.5354,3815.7,3815.6,6.61748]
[1753619396529,3.2078,3815.8,3815.7,6.61746]
[1753619396728,4.7643,3815.8,3815.7,6.61746]
[1753619396928,6.2412,3815.8,3815.7,6.61746]
[1753619397426,3.2078,3815.8,3815.7,6.61746]
[1753619400233,1.4769,3816.2,3815.9,1.30983]
[1753619400234,3.2078,3816.2,3815.9,1.30983]
[1753619400433,3.2078,3816.2,3816.1,6.55381]
[1753619400628,6.4465,3816.6,3816.5,6.55375]
[1753619401037,6.6834,3816.6,3816.5,6.55375]
[1753619401430,6.4465,3816.6,3816.5,6.55375]
[1753619401632,6.2984,3816.6,3816.5,6.55375]
[1753619402635,6.4465,3816.6,3816.5,6.55375]
[1753619403232,3.2078,3816.6,3816.5,6.55375]
[1753619403434,5.6855,3816.6,3816.5,6.55375]
[1753619403637,6.4465,3816.6,3816.5,6.55375]
[1753619405043,6.2984,3816.6,3816.5,6.55375]
[1753619405739,6.4465,3816.6,3816.5,6.55375]
[1753619406244,4.2322,3816.6,3816.5,6.55375]
[1753619406542,2.0223,3816.9,3816.8,2.3488]
[1753619406736,2.0223,3816.9,3816.8,6.55371]
[1753619406938,1.7854,3816.9,3816.8,6.55371]
[1753619407138,3.2387,3816.9,3816.8,6.55371]
[1753619407334,3.2078,3817.0,3816.9,6.5537]
[1753619408339,1.4533,3817.7,3816.6,1.30958]
[1753619408340,3.5208,3817.9,3817.8,1.92537]
[1753619408533,4.9473,3817.9,3817.8,4.08887]
[1753619408742,4.9473,3817.9,3817.8,6.55357]
[1753619408944,5.8285,3817.9,3817.8,5.03597]
[1753619409145,5.8285,3817.9,3817.8,4.08887]
[1753619409741,5.8285,3817.9,3817.8,5.03597]
[1753619410039,3.2906,3817.9,3817.8,6.55357]
[1753619410843,1.6373,3818.6,3818.5,1.36548]
[1753619411040,5.6285,3818.6,3818.5,6.55348]
[1753619411437,0.8431,3818.9,3818.8,0.52354]
[1753619411738,2.4777,3819.1,3819.0,6.55341]
[1753619411944,3.0906,3819.1,3819.0,6.55341]
[1753619412749,1.0244,3819.1,3819.0,6.55341]
[1753619412941,1.0244,3819.1,3818.8,3.2078]
[1753619412942,2.4984,3819.3,3819.2,2.87228]
[1753619413137,3.1086,3819.3,3819.2,6.55338]
[1753619413336,5.6465,3819.3,3819.2,6.55338]
[1753619413637,0.018,3819.3,3819.2,6.55338]
[1753619414842,0.2,3819.9,3819.2,6.55338]
[1753619414843,3.4913,3819.9,3819.8,1.789]
[1753619415040,5.6285,3819.5,3819.4,4.5123]
[1753619415241,5.6285,3819.5,3819.4,1.36535]
[1753619415446,5.6285,3819.4,3819.3,0.52346]
[1753619415644,5.6285,3819.4,3819.2,0.52348]
[1753619415844,6.15197,3819.3,3819.1,0.52349]
[1753619416046,5.6285,3819.3,3819.0,1.2884]
[1753619416248,2.97441,3819.0,3818.9,2.1303]
[1753619416542,5.6285,3819.0,3818.9,1.36542]
[1753619416743,6.15201,3819.0,3818.9,1.36542]
[1753619416944,5.6285,3819.0,3818.9,1.92522]
[1753619417143,5.6285,3819.0,3818.9,3.21362]
[1753619417349,5.6285,3819.0,3818.9,4.08872]
[1753619417751,5.6285,3819.0,3818.9,5.03582]
[1753619418448,6.15201,3819.0,3818.9,4.5123]
[1753619418648,6.15201,3819.0,3818.9,5.03582]
[1753619418944,5.6285,3819.0,3818.9,5.03582]
[1753619419350,6.15201,3819.0,3818.9,4.5123]
[1753619419543,6.15201,3819.0,3818.9,0.52352]
[1753619419744,5.6285,3818.9,3818.8,4.08873]
[1753619420047,5.6285,3818.9,3818.8,5.03583]
[1753619420344,5.6285,3818.9,3818.8,6.55343]
[1753619422247,3.0906,3818.9,3818.8,6.55343]
[1753619423445,3.8207,3819.4,3819.3,5.03577]
[1753619423648,2.4509,3819.1,3818.8,1.5176]
[1753619423854,5.6285,3819.0,3818.9,0.52352]
[1753619424245,5.6285,3819.0,3818.9,1.36542]
[1753619424445,5.6285,3819.0,3818.9,1.92522]
[1753619425146,8.8363,3819.0,3818.7,0.52354]
[1753619425352,6.15204,3818.8,3818.7,0.52354]
[1753619425549,3.9718,3818.5,3818.2,3.2078]
[1753619425854,3.0906,3818.1,3818.0,6.55355]
[1753619426349,5.6285,3818.1,3818.0,6.55355]
[1753619427551,3.9337,3818.1,3818.0,6.55355]
[1753619427759,3.1269,3818.4,3818.3,6.47841]
[1753619428055,4.8471,3818.7,3818.6,5.23536]
[1753619428357,3.1269,3818.7,3818.6,6.47836]
[1753619428655,7.3136,3819.0,3818.9,6.47832]
[1753619428847,7.3136,3819.0,3818.9,5.02242]
[1753619429053,8.8581,3819.0,3818.9,5.02242]
[1753619429252,9.38161,3819.0,3818.9,4.4989]
[1753619429454,8.8581,3819.0,3818.9,3.20562]
[1753619429646,9.38161,3819.0,3818.9,3.20562]
[1753619429844,3.2078,3819.0,3818.3,1.243]
[1753619430046,4.8072,3818.2,3818.1,1.37923]
[1753619430249,5.6503,3818.1,3818.0,0.52364]
[1753619430445,2.3856,3817.9,3817.8,2.82917]
[1753619430645,5.6503,3817.9,3817.8,4.07217]
[1753619432757,6.17396,3817.9,3817.8,4.07217]
[1753619433152,0.5237,3817.7,3817.6,1.4391]
[1753619433357,2.3856,3817.5,3817.4,0.52373]
[1753619433857,3.2627,3817.5,3817.3,1.76673]
[1753619434056,5.6503,3817.4,3817.3,1.76673]
[1753619434257,5.6503,3817.4,3817.3,3.20583]
[1753619434459,8.8581,3817.8,3817.7,5.02259]
[1753619434657,6.17397,3817.8,3817.7,4.4989]
[1753619435057,6.17397,3817.8,3817.7,3.5485]
[1753619435358,3.97,3817.8,3817.7,6.47849]
[1753619435553,4.0571,3818.1,3818.0,5.9548]
[1753619435754,5.6395,3818.1,3818.0,6.47845]
[1753619435956,6.16313,3818.1,3818.0,5.9548]
[1753619436256,5.6395,3818.1,3818.0,6.47845]
[1753619438263,7.1778,3818.3,3818.2,6.47842]
[1753619438563,8.0441,3818.3,3818.2,6.47842]
[1753619439361,5.6395,3818.6,3818.5,6.47838]
[1753619440260,3.97,3818.6,3818.5,6.47838]
[1753619440859,3.2078,3818.7,3818.6,1.37916]
[1753619441059,3.2078,3818.7,3818.6,6.47836]
[1753619441264,3.1269,3819.0,3818.9,4.15602]
[1753619441465,3.1269,3819.0,3818.9,6.47832]
[1753619442858,5.6395,3819.0,3818.9,4.07202]
[1753619443066,5.6395,3818.3,3818.2,4.07212]
[1753619443364,5.6395,3818.3,3818.2,5.9548]
[1753619443753,3.1269,3818.3,3818.2,6.47842]
[1753619443957,3.9932,3818.6,3818.5,1.37918]
[1753619444158,3.1269,3818.6,3818.5,6.47838]
[1753619445058,2.97223,3818.9,3818.8,2.3895]
[1753619445264,4.51673,3818.9,3818.8,6.47834]
[1753619445467,5.35982,3818.9,3818.8,5.9548]
[1753619445667,3.65042,3818.9,3818.8,5.9548]
[1753619446265,3.1269,3818.9,3818.8,6.47834]
[1753619446659,3.97,3818.9,3818.8,6.47834]
[1753619447055,2.529,3818.9,3818.8,6.47834]
[1753619447663,3.1269,3818.9,3818.8,6.47834]
[1753619447864,6.16302,3818.9,3818.8,4.07204]
[1753619448161,4.32918,3819.2,3819.1,0.5235]
[1753619448368,6.16298,3819.2,3819.1,6.4783]
[1753619448967,6.16298,3819.2,3819.1,4.072]
[1753619450667,5.6395,3819.2,3819.1,4.072]
[1753619452073,5.6395,3819.2,3819.1,5.0224]
[1753619454075,3.1269,3819.2,3819.1,6.4783]
[1753619454463,4.0509,3819.4,3819.3,1.96257]
[1753619454464,4.6488,3819.4,3819.3,1.96257]
[1753619454676,7.1778,3819.4,3819.3,6.47827]
[1753619454972,0.2,3819.9,3819.6,5.9548]
[1753619455175,0.2,3819.9,3819.8,6.4782]
[1753619456471,0.5234,3819.8,3819.7,3.2078]
[1753619456680,2.10586,3819.4,3819.3,0.52347]
[1753619456874,2.3856,3819.4,3819.3,0.52347]
[1753619457169,5.6395,3819.4,3819.3,1.96257]
[1753619457472,0.2,3819.9,3819.6,0.52341]
[1753619457678,5.7248,3819.7,3819.6,6.45851]
[1753619457886,5.7248,3819.7,3819.6,5.9351]
[1753619457887,6.24821,3819.7,3819.6,5.9351]
[1753619458087,6.24821,3819.7,3819.6,3.5115]
[1753619458290,6.24821,3819.7,3819.6,1.3911]
[1753619458786,6.24821,3819.7,3819.6,1.91453]
[1753619458987,6.24821,3819.7,3819.6,5.06303]
[1753619459189,5.0573,3819.9,3819.8,5.9351]
[1753619459380,5.0573,3819.9,3819.8,6.4585]
[1753619459581,4.1927,3819.9,3819.8,6.4585]
[1753619460284,0.2,3819.9,3819.8,6.4585]
[1753619460792,1.7635,3819.9,3819.8,6.4585]
[1753619461090,5.8944,3819.9,3819.8,5.063]
[1753619461393,6.21781,3819.8,3819.7,0.52341]
[1753619461579,3.9313,3819.5,3819.2,4.4387]
[1753619461786,0.2,3819.9,3819.2,3.2078]
[1753619461787,6.21787,3819.3,3819.2,3.2078]
[1753619464795,2.92414,3818.8,3818.7,4.4387]
[1753619464990,6.21794,3818.8,3818.7,3.2078]
[1753619465189,6.21794,3818.8,3818.7,3.73135]
[1753619465387,6.21794,3818.8,3818.7,3.2078]
[1753619467691,6.21798,3818.6,3818.5,1.3911]
[1753619468396,6.21798,3818.6,3818.5,1.91468]
[1753619468791,6.21798,3818.6,3818.5,1.3911]
[1753619468987,6.21798,3818.6,3818.5,1.91468]
[1753619470297,5.6944,3818.6,3818.5,6.45868]
[1753619470601,1.5307,3818.6,3818.5,6.45868]
[1753619470789,3.0942,3818.6,3818.5,6.45868]
[1753619470992,4.8573,3818.6,3818.5,6.45868]
[1753619471188,4.8573,3818.6,3818.5,5.9351]
[1753619471496,5.38086,3818.6,3818.5,5.9351]
[1753619471695,5.38086,3818.6,3818.5,9.1429]
[1753619471903,6.21796,3818.6,3818.5,9.1429]
[1753619472193,0.996,3818.8,3818.7,6.45865]
[1753619472391,3.0942,3818.8,3818.7,6.45865]
[1753619478600,3.9927,3818.8,3818.7,6.45865]
[1753619479907,3.0942,3818.8,3818.7,6.45865]
[1753619480503,3.9588,3818.8,3818.7,6.45865]
[1753619480708,3.0942,3818.8,3818.7,6.45865]
[1753619481400,3.9927,3818.8,3818.7,6.45865]
[1753619481596,4.8573,3818.8,3818.7,6.45865]
[1753619483106,5.6944,3818.8,3818.7,6.45865]
[1753619483805,2.4006,3818.8,3818.5,3.2078]
[1753619484105,6.21799,3818.4,3818.3,1.33991]
[1753619484803,6.21799,3818.4,3818.3,0.8163]
[1753619485003,6.21799,3818.4,3818.3,1.33991]
[1753619485604,5.6944,3818.4,3818.3,1.91471]
[1753619485804,5.6944,3818.4,3818.3,3.14561]
[1753619486310,6.21799,3818.4,3818.3,3.14561]
[1753619486906,6.21799,3818.4,3818.3,4.03511]
[1753619487908,5.6944,3818.4,3818.3,4.03511]
[1753619488510,5.6944,3818.4,3818.3,5.06321]
[1753619488711,5.6944,3818.4,3818.3,6.55091]
[1753619489610,6.21799,3818.4,3818.3,6.55091]
[1753619489812,5.6944,3818.4,3818.3,6.55091]
[1753619490008,6.21799,3818.4,3818.3,3.5115]
[1753619490311,6.13893,3818.1,3818.0,7.21514]
[1753619490608,5.6153,3818.1,3818.0,7.21514]
[1753619490811,6.13893,3818.1,3818.0,7.21514]
[1753619491709,5.6153,3818.1,3818.0,7.21514]
[1753619492203,5.6153,3818.1,3818.0,8.20634]
[1753619492511,3.0188,3818.1,3818.0,9.69404]
[1753619492712,0.8189,3818.4,3818.3,2.89841]
[1753619492908,2.3125,3818.4,3818.3,6.48621]
[1753619493408,6.13889,3818.4,3818.3,6.48621]
[1753619493613,6.13893,3818.3,3818.2,0.52361]
[1753619494012,1.30893,3818.6,3818.0,4.5914]
[1753619494013,6.13893,3818.1,3818.0,4.5914]
[1753619494213,6.13893,3818.1,3818.0,5.7793]
[1753619494413,6.13893,3818.1,3818.0,7.21515]
[1753619494613,6.13893,3818.1,3818.0,6.6915]
[1753619494908,6.13893,3818.1,3818.0,6.30295]
[1753619495114,6.13893,3818.1,3818.0,7.21515]
[1753619495614,5.27063,3818.1,3818.0,9.69405]
[1753619495809,2.4029,3818.4,3818.3,5.9626]
[1753619496013,2.92649,3818.4,3818.3,6.48621]
[1753619496408,4.45169,3818.4,3818.3,6.48621]
[1753619496603,5.27059,3818.4,3818.3,6.48621]
[1753619497311,4.747,3818.4,3818.3,6.48621]
[1753619497711,5.27059,3818.4,3818.3,6.48621]
[1753619498215,6.13889,3818.4,3818.3,5.9626]
[1753619498413,6.13889,3818.4,3818.3,6.48621]
[1753619499011,6.13889,3818.4,3818.3,4.99851]
[1753619500111,5.6153,3818.4,3818.3,4.99851]
[1753619500414,6.13889,3818.4,3818.3,6.48621]
[1753619500721,5.6153,3818.4,3818.3,6.48621]
[1753619500916,6.13889,3818.4,3818.3,6.48621]
[1753619501412,4.747,3818.4,3818.3,6.48621]
[1753619502119,6.13889,3818.4,3818.3,6.48621]
[1753619502714,6.13889,3818.4,3818.3,4.4749]
[1753619502915,6.13889,3818.4,3818.3,4.99851]
[1753619503120,6.11793,3818.1,3818.0,4.5914]
[1753619503423,6.11793,3818.1,3818.0,3.2078]
[1753619503818,6.11793,3818.1,3818.0,3.73145]
[1753619504019,2.88555,3818.0,3817.9,0.52365]
[1753619504219,2.01726,3817.9,3817.8,1.1879]
[1753619504522,6.11796,3817.9,3817.8,2.0132]
[1753619504723,6.11796,3817.9,3817.8,2.5715]
[1753619504920,6.11796,3817.9,3817.8,4.00737]
[1753619505119,6.11796,3817.9,3817.8,0.8253]
[1753619505326,6.118,3817.7,3817.6,4.0074]
[1753619505526,6.118,3817.7,3817.6,4.9986]
[1753619505824,6.118,3817.7,3817.6,6.4863]
[1753619510423,5.5943,3817.7,3817.6,6.4863]
[1753619510632,6.11799,3817.7,3817.6,6.4863]
[1753619511824,3.0188,3817.7,3817.6,6.4863]
[1753619512019,0.52367,3817.9,3817.8,0.52367]
[1753619512229,1.5252,3818.1,3818.0,6.48625]
[1753619512622,2.4029,3818.3,3818.2,2.89842]
[1753619512834,3.9281,3818.3,3818.2,6.48622]
[1753619513024,4.45171,3818.3,3818.2,6.48622]
[1753619513630,2.454,3818.3,3818.2,6.48622]
[1753619513831,3.0188,3818.3,3818.2,6.48622]
[1753619516332,3.9281,3818.3,3818.2,6.48622]
[1753619517227,4.726,3818.3,3818.2,6.48622]
[1753619517630,6.11791,3818.3,3818.2,6.48622]
[1753619517831,5.5943,3818.3,3818.2,6.48622]
[1753619518531,6.11791,3818.3,3818.2,6.48622]
[1753619518823,5.5943,3818.3,3818.2,6.48622]
[1753619521435,2.3619,3818.3,3817.8,1.2779]
[1753619521632,2.94266,3818.0,3817.9,0.52365]
[1753619521832,2.94266,3818.0,3817.9,3.26915]
[1753619522032,2.94266,3818.0,3817.9,4.12155]
[1753619522227,6.04526,3818.0,3817.9,4.12155]
[1753619522733,6.04526,3818.0,3817.9,6.56285]
[1753619523034,2.4762,3818.0,3817.9,6.56285]
[1753619523930,3.0683,3818.0,3817.9,6.56285]
[1753619524238,5.21515,3818.0,3817.9,6.56285]
[1753619524636,4.6915,3818.0,3817.9,6.56285]
[1753619525638,3.0683,3818.0,3817.9,6.56285]
[1753619526235,0.8492,3818.3,3818.2,0.852]
[1753619526538,3.2121,3818.3,3818.2,6.0392]
[1753619526734,3.2121,3818.3,3818.2,6.56282]
[1753619526935,5.5216,3818.3,3818.2,6.56282]
[1753619528743,6.04521,3818.3,3818.2,6.56282]
[1753619529534,5.5216,3818.3,3818.2,6.56282]
[1753619529939,6.04521,3818.3,3818.2,6.56282]
[1753619530142,3.0683,3818.3,3818.2,6.56282]
[1753619530438,3.59191,3818.3,3818.2,6.56282]
[1753619530635,3.9175,3818.3,3818.2,6.56282]
[1753619530840,4.6915,3818.3,3818.2,6.56282]
[1753619531240,5.21511,3818.3,3818.2,6.56282]
[1753619532138,4.6915,3818.3,3818.2,6.56282]
[1753619532337,5.21511,3818.3,3818.2,6.56282]
[1753619532841,4.6915,3818.3,3818.2,6.56282]
[1753619533042,3.9175,3818.3,3818.2,6.56282]
[1753619533639,4.6915,3818.3,3818.2,6.56282]
[1753619534040,5.21511,3818.3,3818.2,6.56282]
[1753619534341,4.6915,3818.3,3818.2,6.56282]
[1753619534541,5.21511,3818.3,3818.2,6.56282]
[1753619534738,4.6915,3818.3,3818.2,6.56282]
[1753619534938,3.0683,3818.7,3818.6,2.97566]
[1753619535241,3.0683,3818.7,3818.6,6.56276]
[1753619535443,3.9175,3818.7,3818.6,6.56276]
[1753619535743,4.6915,3818.7,3818.6,6.56276]
[1753619537244,5.21505,3818.7,3818.6,6.56276]
[1753619537840,4.6915,3818.7,3818.6,6.56276]
[1753619538444,2.4762,3818.7,3818.6,6.56276]
[1753619539846,4.6915,3819.0,3818.9,4.25352]
[1753619540047,4.6915,3819.0,3818.9,6.56272]
[1753619540439,5.21501,3819.0,3818.9,6.56272]
[1753619540636,6.04511,3819.0,3818.9,6.56272]
[1753619541437,4.6915,3819.0,3818.9,6.56272]
[1753619541843,5.21501,3819.0,3818.9,6.56272]
[1753619542047,6.04511,3819.0,3818.9,6.56272]
[1753619542447,5.5216,3819.0,3818.9,9.77052]
[1753619542649,6.04511,3819.0,3818.9,9.77052]
[1753619543646,6.04511,3819.0,3818.9,6.56272]